fUST/lending_fUST_20250802
["ID","MTS","AMOUNT","RATE_DAILY","PERIOD"]
[376848228,1754137871367,-312.16666667,0.00026849,7]
[376848229,1754137871376,-460.0,0.00026849,10]
[376848230,1754137871386,-464.63859633,0.00026849,10]
[376848231,1754137871396,-312.16666667,0.00026849,10]
[376848232,1754137871406,-151.0,0.00026998,7]
[376848233,1754137871416,-151.0,0.00026998,7]
[376848234,1754137871427,-151.0,0.00027,2]
[376848235,1754137871437,-231.0,0.00027,2]
[376848236,1754137871447,-151.0,0.00027,7]
[376848237,1754137871456,-151.0,0.00027,7]
[376848238,1754137871466,-151.0,0.00027,7]
[376848239,1754137871475,-151.0,0.00027,7]
[376848240,1754137871484,-151.0,0.00027467,7]
[376848241,1754137871493,-151.0,0.00027467,7]
[376848242,1754137871502,-151.0,0.00027467,7]
[376848243,1754137871511,-151.0,0.00027467,7]
[376848244,1754137871520,-29713.05696517,0.00027467,20]
[376848245,1754137872913,-286.67664843,0.00023609,2]
[376848246,1754137878377,-213.32335157,0.00023609,2]
[376848247,1754137888492,212.92003315,0.00022998,2]
[376848248,1754137888517,1.24885085,0.00022998,2]
[376848249,1754137890757,200.0,0.00026433,120]
[376848250,1754137965002,2007.4,0.00027467,30]
[376848251,1754137965028,-180.08029204,0.0002323,2]
[376848252,1754137968157,-135.58828454,0.0002323,2]
[376848253,1754137968178,-86.8967208,0.00023709,2]
[376848254,1754137970001,-293.14116621,0.00023709,2]
[376848255,1754137973712,-203.24424097,0.00023709,2]
[376848256,1754137976504,-176.57297905,0.00023709,2]
[376848257,1754137980130,-197.91878527,0.00023709,2]
[376848258,1754137981819,-302.08121473,0.00023709,2]
[376848259,1754137984192,-161.0,0.00023709,2]
[376848260,1754137986530,-177.52434828,0.00023709,2]
[376848261,1754137991720,-165.39539143,0.00023709,2]
[376848262,1754137993334,-194.5535976,0.00023709,2]
[376848263,1754137993354,-38.79544364,0.00023709,2]
[376848264,1754137995680,-121.20455636,0.00023709,2]
[376848265,1754138002535,230.76,0.00026027,120]
[376848266,1754138011264,200.0,0.00026993,120]
[376848267,1754138070541,200.0,0.00026507,120]
[376848268,1754138071956,-293.83146962,0.0002361,2]
[376848269,1754138074395,-222.15660986,0.0002361,2]
[376848270,1754138075994,-157.63607651,0.0002361,2]
[376848271,1754138077662,-300.0,0.0002361,2]
[376848272,1754138080733,-358.342532,0.0002361,2]
[376848273,1754138083015,-171.29117867,0.0002361,2]
[376848274,1754138085160,-219.58106527,0.0002361,2]
[376848275,1754138088637,-278.5062842,0.0002361,2]
[376848276,1754138093240,-481.59412172,0.0002361,2]
[376848277,1754138097485,-383.22096222,0.0002361,2]
[376848278,1754138134018,531.54501,0.00027397,120]
[376848279,1754138189492,1123.0,0.0002724,120]
[376848280,1754138190227,210.81803435,0.00022902,2]
[376848282,1754138250935,200.0,0.00027235,120]
[376848283,1754138311310,200.0,0.00027116,120]
[376848284,1754138452119,5000.0,0.0002301,2]
[376848285,1754138465608,158.016565,0.00013699,2]
[376848286,1754138465848,158.016565,0.00021404,2]
[376848289,1754138539190,188.12342762,0.00027397,120]
[376848293,1754138655129,5000.0,0.0002301,2]
[376848294,1754138672419,5000.0,0.0002301,2]
[376848295,1754138767459,150.0,0.00027,120]
[376848299,1754138957127,-312.48939741,0.00023548,2]
[376848300,1754138973351,-157.28070423,0.00023558,2]
[376848306,1754139032538,-253.29003,0.00023558,2]
[376848307,1754139032594,-104.93937577,0.00023558,2]
[376848308,1754139032603,-165.95780041,0.00023648,2]
[376848309,1754139032614,-159.684336,0.00023667,2]
[376848310,1754139032623,-366.6467218,0.00023849,2]
[376848311,1754139032632,-165.95780041,0.00024161,2]
[376848312,1754139032642,-150.0,0.00024404,2]
[376848313,1754139032651,-380.0,0.00024658,2]
[376848314,1754139032660,-773.8,0.00024665,2]
[376848315,1754139032669,-165.95780041,0.00024673,2]
[376848316,1754139032678,-533.79946592,0.00024673,2]
[376848317,1754139032687,-780.43,0.00024707,3]
[376848318,1754139032697,-122.82669628,0.00024715,2]
[376848319,1754139032708,-90.17330372,0.00024715,2]
[376848320,1754139032718,-229.0,0.00024715,2]
[376848321,1754139032727,-401.92658138,0.00024716,2]
[376848322,1754139032736,-182.35523888,0.00024716,2]
[376848323,1754139032745,-500.0,0.00024716,2]
[376848324,1754139032754,-200.41071204,0.00024716,2]
[376848325,1754139032763,-500.0,0.00024716,2]
[376848326,1754139032773,-500.0,0.00024716,2]
[376848327,1754139032783,-500.0,0.00024716,2]
[376848328,1754139032792,-500.0,0.00024716,2]
[376848329,1754139032801,-500.0,0.00024716,2]
[376848330,1754139032811,-500.0,0.00024716,2]
[376848331,1754139032821,-500.0,0.00024716,2]
[376848332,1754139032831,-500.0,0.00024716,2]
[376848333,1754139032840,-252.3633836,0.00024716,2]
[376848334,1754139032849,-164.041,0.00024716,7]
[376848335,1754139032859,-178.896,0.00024716,7]
[376848336,1754139032869,-8947.64,0.00024716,2]
[376848337,1754139032878,-36810.35217521,0.00024717,2]
[376848351,1754139038503,-571.66105847,0.00024717,2]
[376848375,1754139038718,-172184.78609737,0.00024717,2]
[376848449,1754139040807,-57102.70181719,0.00024717,2]
[376848450,1754139040816,-500.0,0.00024773,2]
[376848452,1754139040826,-222.48500534,0.00024799,2]
[376848454,1754139040835,-562.94,0.000248,7]
[376848456,1754139040844,-450.94508998,0.000248,2]
[376848457,1754139040853,-150.0,0.00024831,2]
[376848459,1754139040862,-150.0,0.00024873,2]
[376848461,1754139040871,-500.0,0.00024873,2]
[376848463,1754139040886,-500.0,0.00024873,2]
[376848464,1754139040902,-500.0,0.00024873,2]
[376848466,1754139040922,-286.04471633,0.00024899,2]
[376848468,1754139040935,-66508.9055733,0.000249,2]
[376848620,1754139045566,-280.31151666,0.000249,2]
[376848654,1754139046705,-98056.84706943,0.000249,2]
[376848909,1754139212715,561.28303854,0.000228,2]
[376848910,1754139212739,1911.52361645,0.000228,2]
[376848911,1754139218701,398.658757,0.00027397,120]
[376848912,1754139514601,1648.53777,0.000228,2]
[376848914,1754139528413,158.016565,0.00013699,2]
[376848915,1754139528599,158.016565,0.00022505,2]
[376848917,1754139816274,1099.02518,0.000228,2]
[376848918,1754139939742,-205.65546227,0.00023599,2]
[376848919,1754139995109,-52.09959273,0.00023599,2]
[376848920,1754139995132,-108.54061375,0.00023869,2]
[376848922,1754140038194,-152.0,0.00023236,2]
[376848923,1754140039830,-7.684336,0.00023236,2]
[376848924,1754140047109,-65.60319776,0.00023869,2]
[376848925,1754140047130,-119.03555381,0.00023958,2]
[376848926,1754140088904,1022.59,0.000245,120]
[376848928,1754140117600,732.68345333,0.000224,2]
[376848929,1754140158092,-300.0,0.00023438,2]
[376848930,1754140158113,-2053.55880514,0.00023439,2]
[376848931,1754140172093,-4427.37000129,0.00023439,2]
[376848932,1754140214394,298.994067,0.00027397,120]
[376848933,1754140224027,4961.68577207,0.0002301,2]
[376848951,1754140231914,-300.0,0.00023438,2]
[376848952,1754140231924,-300.0,0.00023438,2]
[376848953,1754140231934,-203.79831121,0.00023438,2]
[376848955,1754140231945,-387.45004,0.00023438,2]
[376848959,1754140231972,-525.75164879,0.00023438,2]
[376848960,1754140231982,-209.0,0.00023438,2]
[376848962,1754140231991,-1080.11765962,0.00023439,2]
[376848965,1754140232003,-676.19363058,0.00023439,2]
[376848974,1754140232087,-1402.68636942,0.00023439,2]
[376849099,1754140237868,-7838.56611319,0.00023439,2]
[376849102,1754140237881,-7421.50742076,0.00023439,2]
[376849104,1754140237891,-200.0,0.00023907,15]
[376849106,1754140237900,-200.0,0.00023907,15]
[376849107,1754140237910,-200.0,0.00023907,15]
[376849110,1754140237926,-200.0,0.00023907,15]
[376849111,1754140237939,-200.0,0.00023907,15]
[376849113,1754140237949,-700.0,0.000242,2]
[376849115,1754140237958,-24678.05852656,0.000242,2]
[376849116,1754140237968,-467.07453268,0.00024373,2]
[376849118,1754140237978,-690.86018877,0.00024378,12]
[376849120,1754140237988,-164.041,0.00024447,7]
[376849121,1754140237997,-500.0,0.00024473,2]
[376849122,1754140238007,-500.0,0.00024473,2]
[376849123,1754140238017,-500.0,0.00024473,2]
[376849126,1754140238027,-20000.0,0.00024617,2]
[376849128,1754140238037,-519.45882037,0.00024632,2]
[376849130,1754140238047,-150.0,0.00024716,2]
[376849132,1754140238057,-467.07453266,0.00024808,2]
[376849134,1754140238067,-506.65,0.000249,7]
[376849136,1754140238077,-489.18533421,0.000249,2]
[376849138,1754140238086,-216.27517063,0.00025124,2]
[376849140,1754140238095,-430.4623945,0.00025143,2]
[376849142,1754140238105,-430.4623945,0.00025143,2]
[376849144,1754140238114,-467.07453266,0.00025244,2]
[376849146,1754140238124,-467.07453266,0.00025679,2]
[376849148,1754140238134,-227.27,0.00025742,2]
[376849150,1754140238144,-151.0,0.00025837,2]
[376849152,1754140238153,-151.0,0.00025837,2]
[376849154,1754140238163,-151.0,0.00025837,2]
[376849156,1754140238172,-151.0,0.00025837,2]
[376849158,1754140238182,-151.0,0.00025837,2]
[376849160,1754140238191,-151.0,0.00025837,2]
[376849162,1754140238200,-151.0,0.00025837,2]
[376849164,1754140238210,-151.0,0.00025837,2]
[376849166,1754140238219,-407.0,0.00025985,2]
[376849168,1754140238229,-2147.0,0.0002609,2]
[376849169,1754140238238,-635.0,0.0002609,2]
[376849170,1754140238247,-430.4623945,0.00026102,2]
[376849171,1754140238256,-467.07453266,0.00026115,2]
[376849172,1754140238265,-200.0,0.00026229,15]
[376849173,1754140238274,-200.0,0.00026229,15]
[376849174,1754140238283,-200.0,0.00026229,15]
[376849175,1754140238292,-200.0,0.00026229,15]
[376849176,1754140238301,-200.0,0.00026229,15]
[376849177,1754140238310,-200.0,0.00026229,15]
[376849179,1754140238319,-200.0,0.00026229,15]
[376849181,1754140238329,-327.7800722,0.00026239,2]
[376849183,1754140238338,-181.3928505,0.00026239,2]
[376849185,1754140238351,-583.5685955,0.00026239,2]
[376849187,1754140238364,-578.5960598,0.00026239,2]
[376849189,1754140238374,-500.0,0.00026239,2]
[376849191,1754140238384,-153.549557,0.00026282,2]
[376849193,1754140238394,-153.0,0.00026282,2]
[376849195,1754140238404,-153.0,0.00026282,2]
[376849197,1754140238414,-500.0,0.00026372,2]
[376849199,1754140238424,-467.07453266,0.0002655,2]
[376849201,1754140238433,-473.39152641,0.0002663,2]
[376849203,1754140238443,-1445.42918752,0.00026748,2]
[376849205,1754140238453,-1445.4291875,0.00026748,2]
[376849207,1754140238465,-1445.4291875,0.00026749,2]
[376849209,1754140238475,-1445.4291875,0.00026749,2]
[376849211,1754140238485,-1445.4291875,0.00026749,2]
[376849213,1754140238495,-151.0,0.000268,17]
[376849215,1754140238504,-13207.72975091,0.00026817,2]
[376849217,1754140238518,-20540.56381619,0.00026817,2]
[376849219,1754140238530,-8578.04858597,0.00026817,2]
[376849222,1754140238542,-455.18249544,0.00026817,2]
[376849224,1754140238554,-2998.44269599,0.00026817,2]
[376849226,1754140238565,-652.66070144,0.00026817,2]
[376849229,1754140238589,-211.25232936,0.00026817,2]
[376849230,1754140238599,-996.416497,0.00026817,2]
[376849231,1754140238608,-1722.10578005,0.00026817,2]
[376849232,1754140238620,-5056.85840394,0.00026817,2]
[376849233,1754140238632,-5635.84249109,0.00026817,2]
[376849234,1754140238647,-4712.77676424,0.00026817,2]
[376849235,1754140238658,-4549.44477277,0.00026817,2]
[376849236,1754140238670,-5252.05896771,0.00026817,2]
[376849237,1754140238681,-19714.7931955,0.00026817,2]
[376849238,1754140238692,-996.416497,0.00026817,2]
[376849239,1754140238702,-8574.82,0.00026826,2]
[376849240,1754140238711,-224.83,0.00026827,3]
[376849241,1754140238722,-674.52,0.00026827,3]
[376849242,1754140238732,-400.50561522,0.00026828,2]
[376849243,1754140238742,-500.0,0.00026828,2]
[376849244,1754140238751,-500.0,0.00026828,2]
[376849245,1754140238761,-500.0,0.00026828,2]
[376849246,1754140238770,-500.0,0.00026828,2]
[376849247,1754140238780,-500.0,0.00026828,2]
[376849248,1754140238789,-500.0,0.00026828,2]
[376849249,1754140238799,-500.0,0.00026828,2]
[376849250,1754140238810,-500.0,0.00026828,2]
[376849251,1754140238819,-500.0,0.00026828,2]
[376849252,1754140238828,-500.0,0.00026828,2]
[376849253,1754140238838,-500.0,0.00026828,2]
[376849254,1754140238847,-500.0,0.00026828,2]
[376849255,1754140238856,-500.0,0.00026828,2]
[376849256,1754140238866,-500.0,0.00026828,2]
[376849257,1754140238875,-500.0,0.00026828,2]
[376849258,1754140238885,-500.0,0.00026828,2]
[376849259,1754140238894,-500.0,0.00026828,2]
[376849260,1754140238903,-500.0,0.00026828,2]
[376849261,1754140238913,-500.0,0.00026828,2]
[376849262,1754140238922,-500.0,0.00026828,2]
[376849263,1754140238932,-500.0,0.00026828,2]
[376849264,1754140238941,-500.0,0.00026828,2]
[376849265,1754140238951,-500.0,0.00026828,2]
[376849266,1754140238960,-500.0,0.00026828,2]
[376849267,1754140238969,-500.0,0.00026828,2]
[376849268,1754140238979,-500.0,0.00026828,2]
[376849269,1754140238988,-500.0,0.00026828,2]
[376849270,1754140238997,-500.0,0.00026828,2]
[376849271,1754140239007,-500.0,0.00026828,2]
[376849272,1754140239020,-253.13765841,0.00026828,2]
[376849273,1754140239029,-500.0,0.00026828,2]
[376849274,1754140239039,-500.0,0.00026828,2]
[376849275,1754140239048,-500.0,0.00026828,2]
[376849276,1754140239057,-500.0,0.00026828,2]
[376849277,1754140239067,-500.0,0.00026828,2]
[376849278,1754140239076,-500.0,0.00026828,2]
[376849279,1754140239086,-500.0,0.00026828,2]
[376849280,1754140239095,-500.0,0.00026828,2]
[376849281,1754140239105,-500.0,0.00026828,2]
[376849282,1754140239115,-500.0,0.00026828,2]
[376849283,1754140239124,-500.0,0.00026828,2]
[376849284,1754140239135,-500.0,0.00026828,2]
[376849285,1754140239144,-500.0,0.00026828,2]
[376849286,1754140239153,-500.0,0.00026828,2]
[376849287,1754140239163,-500.0,0.00026828,2]
[376849288,1754140239172,-500.0,0.00026828,2]
[376849290,1754140239181,-500.0,0.00026828,2]
[376849292,1754140239191,-500.0,0.00026828,2]
[376849294,1754140239200,-500.0,0.00026828,2]
[376849296,1754140239209,-196.64141934,0.00026828,2]
[376849298,1754140239219,-500.0,0.00026828,2]
[376849299,1754140239230,-500.0,0.00026828,2]
[376849300,1754140239240,-500.0,0.00026828,2]
[376849301,1754140239249,-233219.401877,0.00026829,2]
[376849302,1754140239259,-5978.498982,0.00026829,2]
[376849303,1754140239268,-11956.997964,0.00026839,2]
[376849304,1754140239278,-200.23130143,0.00026848,2]
[376849305,1754140239287,-264.24504976,0.00026848,2]
[376849306,1754140239297,-1501.02296275,0.00026849,2]
[376849308,1754140239307,-460.0,0.00026849,10]
[376849310,1754140239316,-460.0,0.00026849,10]
[376849311,1754140239325,-362.82017109,0.00026849,10]
[376849313,1754140239334,-460.0,0.00026849,10]
[376849315,1754140239344,-460.0,0.00026849,10]
[376849316,1754140239353,-460.0,0.00026849,10]
[376849317,1754140239363,-460.0,0.00026849,10]
[376849318,1754140239372,-460.0,0.00026849,10]
[376849319,1754140239382,-460.0,0.00026849,10]
[376849320,1754140239391,-460.0,0.00026849,10]
[376849321,1754140239402,-460.0,0.00026849,10]
[376849322,1754140239411,-460.0,0.00026849,10]
[376849323,1754140239420,-460.0,0.00026849,10]
[376849324,1754140239430,-460.0,0.00026849,10]
[376849325,1754140239439,-500.0,0.00026849,10]
[376849326,1754140239448,-500.0,0.00026849,10]
[376849327,1754140239458,-500.0,0.00026849,10]
[376849328,1754140239467,-552.05,0.00026849,10]
[376849329,1754140239477,-460.0,0.00026849,10]
[376849332,1754140239486,-460.0,0.00026849,10]
[376849334,1754140239496,-460.0,0.00026849,10]
[376849336,1754140239505,-460.0,0.00026849,10]
[376849338,1754140239514,-460.0,0.00026849,10]
[376849340,1754140239524,-460.0,0.00026849,10]
[376849342,1754140239533,-460.0,0.00026849,10]
[376849345,1754140239543,-460.0,0.00026849,10]
[376849348,1754140239552,-460.0,0.00026849,10]
[376849351,1754140239562,-548.91126077,0.00026849,10]
[376849353,1754140239572,-460.0,0.00026849,10]
[376849355,1754140239589,-460.0,0.00026849,10]
[376849357,1754140239610,-460.0,0.00026849,10]
[376849358,1754140239627,-460.0,0.00026849,10]
[376849359,1754140239639,-394.92,0.00026849,10]
[376849360,1754140239653,-460.0,0.00026849,10]
[376849361,1754140239662,-460.0,0.00026849,10]
[376849362,1754140239672,-460.0,0.00026849,10]
[376849363,1754140239683,-482.15071244,0.00026849,10]
[376849364,1754140239693,-463.11077342,0.00026849,10]
[376849366,1754140239702,-460.0,0.00026849,10]
[376849368,1754140239712,-460.0,0.00026849,10]
[376849370,1754140239722,-460.0,0.00026849,10]
[376849371,1754140239732,-460.0,0.00026849,10]
[376849373,1754140239742,-460.0,0.00026849,10]
[376849374,1754140239751,-460.0,0.00026849,10]
[376849375,1754140239760,-460.0,0.00026849,10]
[376849376,1754140239770,-460.0,0.00026849,10]
[376849377,1754140239779,-460.0,0.00026849,10]
[376849379,1754140239789,-460.0,0.00026849,10]
[376849381,1754140239798,-460.0,0.00026849,10]
[376849382,1754140239807,-460.0,0.00026849,10]
[376849383,1754140239817,-460.0,0.00026849,10]
[376849385,1754140239826,-182.01226008,0.00026849,10]
[376849387,1754140239835,-460.0,0.00026849,10]
[376849388,1754140239844,-416.74394416,0.00026849,10]
[376849389,1754140239854,-500.0,0.00026849,10]
[376849391,1754140239863,-500.0,0.00026849,10]
[376849393,1754140239872,-500.0,0.00026849,10]
[376849395,1754140239883,-500.0,0.00026849,10]
[376849396,1754140239892,-500.0,0.00026849,10]
[376849398,1754140239901,-500.0,0.00026849,10]
[376849399,1754140239912,-460.0,0.00026849,10]
[376849401,1754140239922,-460.0,0.00026849,10]
[376849403,1754140239931,-500.0,0.00026849,10]
[376849405,1754140239941,-500.0,0.00026849,10]
[376849407,1754140239950,-500.0,0.00026849,10]
[376849408,1754140239962,-500.0,0.00026849,10]
[376849409,1754140239972,-500.0,0.00026849,10]
[376849410,1754140239981,-460.0,0.00026849,10]
[376849411,1754140239991,-500.0,0.00026849,10]
[376849412,1754140240000,-460.0,0.00026849,10]
[376849413,1754140240009,-601.47430154,0.00026849,10]
[376849414,1754140240019,-460.0,0.00026849,10]
[376849415,1754140240028,-460.0,0.00026849,10]
[376849416,1754140240038,-460.0,0.00026849,10]
[376849417,1754140240047,-465.77462688,0.00026849,10]
[376849418,1754140240057,-460.0,0.00026849,10]
[376849419,1754140240066,-460.0,0.00026849,10]
[376849420,1754140240075,-460.0,0.00026849,10]
[376849421,1754140240085,-460.0,0.00026849,10]
[376849422,1754140240094,-460.0,0.00026849,10]
[376849423,1754140240103,-462.16298225,0.00026849,10]
[376849424,1754140240114,-460.0,0.00026849,10]
[376849425,1754140240123,-460.0,0.00026849,10]
[376849426,1754140240134,-460.0,0.00026849,10]
[376849427,1754140240144,-460.0,0.00026849,10]
[376849428,1754140240153,-461.27481302,0.00026849,10]
[376849429,1754140240164,-460.0,0.00026849,10]
[376849430,1754140240174,-460.0,0.00026849,10]
[376849431,1754140240184,-460.0,0.00026849,10]
[376849432,1754140240193,-460.0,0.00026849,10]
[376849433,1754140240203,-460.0,0.00026849,10]
[376849434,1754140240212,-460.0,0.00026849,10]
[376849435,1754140240221,-460.0,0.00026849,10]
[376849436,1754140240230,-460.0,0.00026849,10]
[376849437,1754140240239,-460.0,0.00026849,10]
[376849438,1754140240249,-460.0,0.00026849,10]
[376849439,1754140240258,-464.92494187,0.00026849,10]
[376849440,1754140240267,-530.16592282,0.00026849,10]
[376849441,1754140240276,-292.83700197,0.00026849,10]
[376849442,1754140240286,-461.72628164,0.00026849,10]
[376849443,1754140240296,-461.89227016,0.00026849,10]
[376849444,1754140240305,-462.37036742,0.00026849,10]
[376849445,1754140240316,-460.19706394,0.00026849,10]
[376849446,1754140240325,-460.0,0.00026849,10]
[376849447,1754140240334,-462.51841619,0.00026849,10]
[376849448,1754140240343,-460.0,0.00026849,10]
[376849449,1754140240352,-460.0,0.00026849,10]
[376849450,1754140240361,-463.54112199,0.00026849,10]
[376849451,1754140240371,-460.0,0.00026849,10]
[376849452,1754140240380,-460.0,0.00026849,10]
[376849453,1754140240389,-460.0,0.00026849,10]
[376849454,1754140240399,-460.0,0.00026849,10]
[376849455,1754140240408,-460.0,0.00026849,10]
[376849456,1754140240417,-460.0,0.00026849,10]
[376849457,1754140240427,-460.0,0.00026849,10]
[376849458,1754140240436,-460.0,0.00026849,10]
[376849459,1754140240445,-460.0,0.00026849,10]
[376849460,1754140240455,-460.0,0.00026849,10]
[376849461,1754140240464,-461.59944253,0.00026849,10]
[376849462,1754140240473,-460.0,0.00026849,10]
[376849463,1754140240482,-460.0,0.00026849,10]
[376849464,1754140240658,-460.0,0.00026849,10]
[376849465,1754140240669,-460.0,0.00026849,10]
[376849466,1754140240679,-460.80371312,0.00026849,10]
[376849467,1754140240690,-460.0,0.00026849,10]
[376849468,1754140240699,-460.0,0.00026849,10]
[376849469,1754140240709,-460.0,0.00026849,10]
[376849470,1754140240718,-460.0,0.00026849,10]
[376849471,1754140240729,-460.0,0.00026849,10]
[376849472,1754140240740,-460.0,0.00026849,10]
[376849473,1754140240750,-460.0,0.00026849,10]
[376849474,1754140240760,-460.0,0.00026849,10]
[376849475,1754140240769,-460.0,0.00026849,10]
[376849476,1754140240779,-460.0,0.00026849,10]
[376849477,1754140240788,-460.0,0.00026849,10]
[376849478,1754140240799,-460.0,0.00026849,10]
[376849479,1754140240809,-428.05,0.00026849,10]
[376849480,1754140240820,-460.0,0.00026849,10]
[376849481,1754140240830,-460.0,0.00026849,10]
[376849482,1754140240841,-460.0,0.00026849,10]
[376849483,1754140240850,-460.0,0.00026849,10]
[376849484,1754140240860,-460.0,0.00026849,10]
[376849485,1754140240870,-460.0,0.00026849,10]
[376849486,1754140240879,-460.0,0.00026849,10]
[376849487,1754140240890,-460.0,0.00026849,10]
[376849488,1754140240899,-460.0,0.00026849,10]
[376849489,1754140240909,-460.0,0.00026849,10]
[376849490,1754140240918,-460.0,0.00026849,10]
[376849491,1754140240928,-460.0,0.00026849,10]
[376849492,1754140240938,-460.0,0.00026849,10]
[376849493,1754140240947,-462.31238432,0.00026849,10]
[376849494,1754140240957,-460.0,0.00026849,10]
[376849495,1754140240966,-388.16244723,0.00026849,10]
[376849496,1754140240976,-460.0,0.00026849,10]
[376849497,1754140240985,-460.0,0.00026849,10]
[376849498,1754140240995,-463.24619991,0.00026849,10]
[376849499,1754140241004,-576.9501712,0.00026849,10]
[376849500,1754140241015,-460.0,0.00026849,10]
[376849501,1754140241024,-460.0,0.00026849,10]
[376849502,1754140241034,-460.0,0.00026849,10]
[376849503,1754140241044,-460.0,0.00026849,10]
[376849504,1754140241054,-460.0,0.00026849,10]
[376849505,1754140241063,-460.0,0.00026849,10]
[376849506,1754140241073,-460.0,0.00026849,10]
[376849507,1754140241082,-460.0,0.00026849,10]
[376849508,1754140241092,-460.0,0.00026849,10]
[376849509,1754140241102,-460.0,0.00026849,10]
[376849510,1754140241111,-165.94225898,0.00026849,10]
[376849511,1754140241121,-460.0,0.00026849,10]
[376849512,1754140241130,-460.0,0.00026849,10]
[376849513,1754140241140,-460.0,0.00026849,10]
[376849514,1754140241150,-460.0,0.00026849,10]
[376849515,1754140241159,-493.26,0.00026849,10]
[376849516,1754140241169,-475.60037922,0.00026849,10]
[376849517,1754140241179,-460.0,0.00026849,10]
[376849518,1754140241188,-462.85100801,0.00026849,10]
[376849519,1754140241197,-460.0,0.00026849,10]
[376849520,1754140241207,-463.00998728,0.00026849,10]
[376849521,1754140241216,-526.06024635,0.00026849,10]
[376849522,1754140241226,-460.0,0.00026849,10]
[376849523,1754140241236,-460.0,0.00026849,10]
[376849524,1754140241245,-462.70588176,0.00026849,10]
[376849525,1754140241255,-460.83903585,0.00026849,10]
[376849526,1754140241264,-460.0,0.00026849,10]
[376849527,1754140241273,-460.34980748,0.00026849,10]
[376849528,1754140241283,-460.70790734,0.00026849,10]
[376849529,1754140241292,-460.0,0.00026849,10]
[376849530,1754140241301,-460.0,0.00026849,10]
[376849531,1754140241310,-277.54163444,0.00026849,10]
[376849532,1754140241320,-325.82988143,0.00026849,10]
[376849533,1754140241330,-461.10328288,0.00026849,10]
[376849534,1754140241339,-460.0,0.00026849,10]
[376849535,1754140241349,-460.0,0.00026849,10]
[376849536,1754140241358,-460.0,0.00026849,10]
[376849537,1754140241368,-354.97455592,0.00026849,10]
[376849538,1754140241378,-460.0,0.00026849,10]
[376849539,1754140241390,-460.0,0.00026849,10]
[376849540,1754140241400,-460.0,0.00026849,10]
[376849541,1754140241409,-460.0,0.00026849,10]
[376849542,1754140241419,-460.0,0.00026849,10]
[376849543,1754140241429,-460.0,0.00026849,10]
[376849544,1754140241439,-462.03044001,0.00026849,10]
[376849545,1754140241450,-460.0,0.00026849,10]
[376849546,1754140241459,-460.0,0.00026849,10]
[376849547,1754140241469,-461.82965407,0.00026849,10]
[376849548,1754140241479,-460.0,0.00026849,10]
[376849549,1754140241488,-460.0,0.00026849,10]
[376849550,1754140241499,-460.0,0.00026849,10]
[376849551,1754140241508,-460.0,0.00026849,10]
[376849552,1754140241519,-460.0,0.00026849,10]
[376849553,1754140241528,-460.0,0.00026849,10]
[376849554,1754140241538,-460.0,0.00026849,10]
[376849555,1754140241548,-175.86896416,0.00026849,10]
[376849556,1754140241557,-460.0,0.00026849,10]
[376849557,1754140241568,-460.0,0.00026849,10]